bitfinex/quotes_SOLUSD_20250310
["timestamp","ask_amount","ask_price","bid_price","bid_amount"]
[1741626617013,67.17029,118.52,118.47,2.8669]
[1741626617197,223.36,118.53,118.46,8.4414]
[1741626617402,67.17029,118.49,118.46,8.4414]
[1741626617909,1.26612456,118.52,118.45,0.063]
[1741626618089,223.49990851,118.6,118.45,0.34732314]
[1741626618291,67.17029,118.56,118.51,67.17029]
[1741626618510,67.17029,118.56,118.48,20.0]
[1741626618805,67.17029,118.56,118.5,67.17029]
[1741626619013,67.17029,118.52,118.49,0.063]
[1741626619315,67.17029,118.51,118.49,0.063]
[1741626619608,8.59110667,118.58,118.49,67.23329]
[1741626619787,67.17029,118.55,118.49,67.23329]
[1741626619991,1.26612456,118.57,118.5,8.4388]
[1741626620303,1.26612456,118.57,118.49,0.063]
[1741626620304,67.17029,118.52,118.49,0.063]
[1741626620501,1.26612456,118.51,118.49,0.063]
[1741626620700,224.64612456,118.51,118.49,0.063]
[1741626621021,223.38,118.51,118.49,8.5024]
[1741626621200,223.53790667,118.58,118.5,67.17029]
[1741626621388,223.53790667,118.58,118.54,67.17029]
[1741626621595,290.70819667,118.58,118.52,87.17029]
[1741626621801,223.53790667,118.58,118.56,67.17029]
[1741626622013,0.15790667,118.58,118.57,75.60409]
[1741626622312,0.15790667,118.58,118.57,8.4338]
[1741626622616,0.15790667,118.58,118.55,67.17029]
[1741626622827,0.15790667,118.58,118.54,75.60619]
[1741626622993,67.32819667,118.58,118.53,11.3274]
[1741626623195,67.17029,118.56,118.52,8.4373]
[1741626623420,0.15790667,118.58,118.54,67.17029]
[1741626623631,0.15790667,118.58,118.55,20.0]
[1741626623926,6.67e-06,118.58,118.57,8.4338]
[1741626624111,6.67e-06,118.58,118.56,8.4343]
[1741626624433,6.67e-06,118.58,118.57,67.17029]
[1741626624630,6.67e-06,118.58,118.56,20.0]
[1741626624829,6.67e-06,118.58,118.56,28.4344]
[1741626625134,6.67e-06,118.58,118.54,8.4354]
[1741626625315,1.26612456,118.57,118.49,0.063]
[1741626625520,242.00964886,118.56,118.49,0.063]
[1741626625721,67.17029,118.54,118.49,8.5024]
[1741626625908,223.36,118.56,118.5,67.17029]
[1741626626226,223.36,118.56,118.51,67.17029]
[1741626626433,223.36,118.56,118.53,87.17029]
[1741626626634,223.36,118.56,118.54,67.17029]
[1741626627023,223.36,118.56,118.53,87.17029]
[1741626627221,223.36,118.56,118.49,29.6012]
[1741626627423,223.36,118.56,118.51,67.17029]
[1741626627639,223.36,118.56,118.53,67.17029]
[1741626627837,223.36,118.56,118.49,29.6012]
[1741626628173,290.53029,118.56,118.5,67.17029]
[1741626628316,67.17029,118.54,118.49,0.063]
[1741626628512,67.0345805,118.53,118.5,8.4385]
[1741626628721,0.16118243,118.51,118.49,0.063]
[1741626628911,0.16118243,118.51,118.49,8.5024]
[1741626629114,0.16118243,118.51,118.49,8.5022]
[1741626629341,0.16118243,118.51,118.49,75.67249]
[1741626629530,0.15807675,118.52,118.5,134.48274157]
[1741626629740,0.15659729,118.54,118.52,67.17029]
[1741626629741,5.721e-05,118.54,118.52,67.17029]
[1741626629923,5.721e-05,118.54,118.53,95.60689]
[1741626630238,1.152e-05,118.56,118.53,116.69859]
[1741626630440,1.152e-05,118.56,118.55,67.17029]
[1741626630647,4.397e-05,118.57,118.55,134.34058]
[1741626630818,4.397e-05,118.57,118.56,67.17029]
[1741626631133,2.654e-05,118.58,118.56,134.34058]
[1741626631344,6.174e-05,118.59,118.58,20.0]
[1741626631529,6.174e-05,118.59,118.58,87.17029]
[1741626631839,223.4,118.63,118.59,20.0]
[1741626631840,6.55e-05,118.6,118.59,20.0]
[1741626632053,67.20029,118.68,118.6,0.14216157]
[1741626632054,0.03,118.68,118.6,0.14216157]
[1741626632239,0.03,118.68,118.67,67.17029]
[1741626632747,67.17029,118.75,118.67,67.17029]
[1741626633052,290.57029,118.76,118.7,67.17029]
[1741626633351,290.57029,118.76,118.62,87.81993886]
[1741626633352,67.17029,118.72,118.66,67.17029]
[1741626633557,1.26612456,118.75,118.69,67.17029]
[1741626633558,67.17029,118.75,118.69,67.17029]
[1741626633753,67.17029,118.75,118.7,67.17029]
[1741626633929,223.4,118.76,118.72,29.481]
[1741626634136,223.4,118.76,118.72,8.4231]
[1741626634339,0.03,118.72,118.7,8.4245]
[1741626634641,0.03,118.72,118.71,67.17029]
[1741626634830,67.17029,118.79,118.73,67.17029]
[1741626635030,0.03,118.8,118.77,67.17029]
[1741626635344,0.03,118.8,118.75,67.17029]
[1741626635747,0.03,118.8,118.78,67.17029]
[1741626636065,0.03,118.8,118.74,67.17029]
[1741626636066,223.403,118.84,118.79,75.58849]
[1741626636231,0.0001,118.84,118.82,20.0]
[1741626636647,0.0001,118.84,118.79,96.63399]
[1741626637270,0.0001,118.84,118.81,67.17029]
[1741626637747,0.0001,118.84,118.8,67.17029]
[1741626637948,0.0001,118.84,118.81,67.17029]
[1741626638158,0.0001,118.84,118.82,75.58629]
[1741626638453,0.0001,118.84,118.82,8.416]
[1741626638636,0.0001,118.84,118.8,8.4175]
[1741626638949,67.17029,118.81,118.75,8.421]
[1741626639156,0.0001,118.84,118.79,67.17029]
[1741626639339,0.0001,118.84,118.78,20.0]
[1741626639547,67.17029,118.83,118.78,20.0]
[1741626639745,67.17039,118.84,118.78,87.17029]
[1741626640064,0.0001,118.84,118.8,8.4175]
[1741626640234,67.17039,118.84,118.8,8.4175]
[1741626640434,0.0001,118.84,118.81,67.17029]
[1741626640774,0.0001,118.84,118.83,87.17029]
[1741626642134,0.063,118.89,118.83,95.58559]
[1741626642343,0.063,118.89,118.88,67.17029]
[1741626642546,0.0001,118.89,118.88,67.17029]
[1741626642930,0.0001,118.89,118.88,67.45461314]
[1741626643177,0.063,118.96,118.91,20.0]
[1741626643339,0.063,118.96,118.95,67.17029]
[1741626643852,0.3,119.03,118.95,67.17029]
[1741626644150,67.17029,119.02,118.97,67.17029]
[1741626644331,67.17029,118.99,118.94,8.4076]
[1741626644527,67.17029,118.99,118.94,75.57789]
[1741626644865,1.26612456,119.01,118.97,87.17029]
[1741626645033,1.26612456,119.02,118.97,67.17029]
[1741626645237,68.43641456,119.02,118.97,67.17029]
[1741626645635,0.3,119.03,118.98,67.17029]
[1741626645636,68.73641456,119.03,118.98,67.17029]
[1741626645940,0.3,119.03,118.99,67.17029]
[1741626646140,67.17029,119.0,118.91,8.4097]
[1741626646345,18.64964886,118.98,118.91,67.17029]
[1741626646549,1.26612456,118.99,118.94,67.17029]
[1741626646771,1.26612456,119.0,118.94,67.17029]
[1741626646935,67.17029,118.98,118.92,67.17029]
[1741626647132,85.81993886,118.97,118.91,67.17029]
[1741626647374,85.81993886,118.94,118.89,67.17029]
[1741626647658,18.64964886,118.91,118.87,67.17029]
[1741626647865,18.64964886,118.91,118.82,3.0693]
[1741626647866,18.64964886,118.89,118.82,3.0693]
[1741626648055,18.64964886,118.84,118.76,29.4696]
[1741626648240,67.17029,118.85,118.76,29.4696]
[1741626648443,87.08606342,118.84,118.79,67.17029]
[1741626648644,67.33821283,118.83,118.78,67.17029]
[1741626648958,0.16792283,118.83,118.78,67.17029]
[1741626649158,0.16792283,118.83,118.8,67.17029]
[1741626649350,0.16792283,118.83,118.82,67.17029]
[1741626650151,0.17257264,118.84,118.82,75.58629]
[1741626650344,0.17257264,118.84,118.83,67.17029]
[1741626651174,0.17257264,118.84,118.8,67.17029]
[1741626651672,0.17257264,118.84,118.79,67.17029]
[1741626651837,0.17257264,118.84,118.81,67.17029]
[1741626652238,0.17257264,118.84,118.78,8.4187]
[1741626652451,0.17197632,118.85,118.76,8.4203]
[1741626652452,67.17029,118.83,118.76,8.4203]
[1741626652644,68.43641456,118.82,118.76,67.17029]
[1741626652838,1.26612456,118.82,118.76,67.17029]
[1741626653044,67.17029,118.81,118.76,67.17029]
[1741626653245,1.26612456,118.82,118.77,67.17029]
[1741626653442,1.26612456,118.83,118.78,67.17029]
[1741626653650,1.26612456,118.84,118.79,67.17029]
[1741626653850,0.17197632,118.85,118.82,67.17029]
[1741626654053,0.17197632,118.85,118.81,67.17029]
[1741626654258,0.17197632,118.85,118.78,8.4189]
[1741626654566,0.17197632,118.85,118.82,67.17029]
[1741626654750,18.64964886,118.84,118.79,67.17029]
[1741626654935,0.17197632,118.85,118.81,67.17029]
[1741626655339,0.17197632,118.85,118.82,67.17029]
[1741626656047,18.64964886,118.84,118.79,67.17029]
[1741626656243,68.60839088,118.85,118.79,67.17029]
[1741626656541,86.27623832,118.85,118.77,8.4195]
[1741626656754,86.27623832,118.85,118.75,3.0306]
[1741626656755,1.26612456,118.84,118.75,3.0306]
[1741626657061,18.933972,118.83,118.76,67.17029]
[1741626657367,85.81993886,118.81,118.76,67.17029]
[1741626657861,1.26612456,118.82,118.76,67.17029]
[1741626658061,85.81993886,118.81,118.76,67.17029]
[1741626658263,18.64964886,118.79,118.74,67.17029]
[1741626658563,18.64964886,118.79,118.69,9.6998]
[1741626658564,1.26612456,118.8,118.75,67.17029]
[1741626658773,85.81993886,118.79,118.73,67.17029]
[1741626658955,85.81993886,118.79,118.68,8.4257]
[1741626658956,0.28432314,118.77,118.68,8.4257]
[1741626659152,67.17029,118.74,118.68,75.59599]
[1741626659467,67.17029,118.75,118.7,67.17029]
[1741626659767,0.28432314,118.74,118.64,8.4288]
[1741626659978,67.17029,118.71,118.63,9.7279]
[1741626660179,67.17029,118.69,118.63,3.0836]
[1741626660476,291.29641456,118.68,118.63,67.17029]
[1741626660642,222.86,118.68,118.62,20.0]
[1741626660848,222.86,118.68,118.67,67.17029]
[1741626661043,18.933972,118.76,118.67,67.17029]
[1741626661380,18.933972,118.76,118.62,20.0]
[1741626661381,1.26612456,118.75,118.63,18.933972]
[1741626661684,1.26612456,118.76,118.64,21.26352582]
[1741626661856,18.933972,118.75,118.59,113.9002]
[1741626662063,1.26612456,118.76,118.7,67.17029]
[1741626662261,75.59199,118.74,118.68,67.17029]
[1741626662466,75.59199,118.74,118.63,8.4295]
[1741626662467,85.81993886,118.7,118.63,8.4295]
[1741626662653,1.26612456,118.7,118.64,67.17029]
[1741626662852,0.28432314,118.69,118.6,8.4317]
[1741626663155,291.35641456,118.68,118.63,87.17029]
[1741626663357,222.92,118.68,118.66,67.17029]
[1741626663556,222.92,118.68,118.63,20.0]
[1741626663757,222.92,118.68,118.65,67.17029]
[1741626664070,222.92,118.68,118.67,67.17029]
[1741626664269,222.92,118.68,118.64,8.4288]
[1741626664470,222.92,118.68,118.64,67.17029]
[1741626664868,222.92,118.68,118.67,67.17029]
[1741626665267,222.92,118.68,118.65,67.17029]
[1741626665469,222.92,118.68,118.63,8.4293]
[1741626665860,290.09029,118.68,118.63,67.17029]
[1741626666055,222.92,118.68,118.64,67.17029]
[1741626666275,222.92,118.68,118.66,67.17029]
[1741626666572,222.92,118.68,118.6,29.5109]
[1741626666780,222.92,118.68,118.65,67.17029]
[1741626666967,222.92,118.68,118.62,67.17029]
[1741626667382,222.92,118.68,118.66,67.17029]
[1741626667677,222.92,118.68,118.67,67.17029]
[1741626668281,222.92,118.68,118.67,75.59699]
[1741626668582,0.16552445,118.69,118.67,75.59699]
[1741626668760,1.324e-05,118.7,118.68,134.34058]
[1741626668958,7.668e-05,118.71,118.69,67.17029]
[1741626669168,7.72e-06,118.73,118.72,20.0]
[1741626669457,7.72e-06,118.73,118.72,154.62490314]
[1741626669661,2.532e-05,118.77,118.73,0.28432314]
[1741626669965,2.532e-05,118.77,118.76,87.17029]
[1741626670478,2.532e-05,118.77,118.76,95.59059]
[1741626670989,2.532e-05,118.77,118.76,75.59059]
[1741626671357,2.532e-05,118.77,118.69,29.4885]
[1741626671672,68.41643988,118.78,118.72,67.17029]
[1741626671988,18.64964886,118.77,118.72,67.17029]
[1741626672299,67.17029,118.78,118.74,8.4216]
[1741626672458,67.17029,118.75,118.69,8.4253]
[1741626672663,18.933972,118.74,118.64,8.4288]
[1741626672883,1.26612456,118.73,118.64,29.4992]
[1741626673086,1.26612456,118.74,118.64,29.4992]
[1741626673293,0.28432314,118.73,118.64,8.4288]
[1741626673492,1.26612456,118.74,118.64,8.4288]
[1741626673662,67.17029,118.73,118.67,67.17029]
[1741626673863,1.26612456,118.74,118.67,67.17029]
[1741626674164,68.43641456,118.74,118.68,75.59629]
[1741626674365,67.17029,118.76,118.7,67.17029]
[1741626674688,68.43641456,118.76,118.7,67.17029]
[1741626674872,67.17029,118.75,118.69,67.17029]
[1741626675063,67.17029,118.71,118.65,67.17029]
[1741626675262,67.17029,118.7,118.65,67.17029]
[1741626675474,291.43641456,118.69,118.64,8.4288]
[1741626675766,67.17029,118.67,118.63,8.4295]
[1741626675971,68.43641456,118.67,118.63,8.4295]
[1741626676384,1.26612456,118.67,118.63,8.4295]
[1741626676570,19.91577342,118.71,118.66,67.17029]
[1741626677085,290.17029,118.72,118.66,67.17029]
[1741626677762,223.0,118.72,118.63,113.799]
[1741626677962,290.23029,118.77,118.71,67.17029]
[1741626678163,290.23029,118.78,118.72,67.17029]
[1741626678372,223.06,118.78,118.73,75.59269]
[1741626678564,67.17029,118.76,118.7,67.17029]
[1741626678768,67.17029,118.73,118.69,8.4253]
[1741626678999,18.64964886,118.71,118.66,67.17029]
[1741626679181,67.17029,118.71,118.65,67.17029]
[1741626679559,85.81993886,118.71,118.65,67.17029]
[1741626679771,18.64964886,118.68,118.63,67.17029]
[1741626679964,18.64964886,118.68,118.6,67.17029]
[1741626679965,67.17029,118.65,118.6,67.17029]
[1741626680197,67.17029,118.64,118.59,0.063]
[1741626680395,67.17029,118.64,118.59,8.4952]
[1741626680607,1.26612456,118.65,118.59,75.66549]
[1741626680766,67.17029,118.62,118.59,0.063]
[1741626680963,67.17029,118.6,118.59,0.063]
[1741626681169,20.20009656,118.6,118.59,0.063]
[1741626681475,87.37038656,118.6,118.59,0.063]
[1741626681680,67.17029,118.61,118.59,0.063]
[1741626681866,85.81993886,118.62,118.59,0.063]
[1741626682189,86.104262,118.6,118.59,0.063]
[1741626682697,94.535962,118.6,118.59,0.063]
[1741626683094,86.104262,118.6,118.59,0.063]
[1741626683266,67.17029,118.6,118.54,67.17029]
[1741626683468,67.17029,118.63,118.57,67.17029]
[1741626683668,18.64964886,118.6,118.55,67.17029]
[1741626683889,67.17029,118.59,118.54,67.17029]
[1741626684268,67.17029,118.59,118.53,75.60619]
[1741626684479,68.43641456,118.58,118.52,75.60739]
[1741626684697,0.28432314,118.56,118.5,0.063]
[1741626684869,67.17029,118.51,118.5,0.063]
[1741626685071,309.264262,118.51,118.5,0.063]
[1741626685712,20.933972,118.5,118.47,0.063]
[1741626685912,88.104262,118.48,118.47,0.063]
[1741626686206,1.26612456,118.49,118.41,0.063]
[1741626686207,106.104262,118.46,118.41,0.063]
[1741626686410,3.26612456,118.49,118.41,0.063]
[1741626686411,1.26612456,118.49,118.41,0.063]
[1741626686598,67.31245157,118.48,118.43,67.17029]
[1741626686900,86.104262,118.46,118.41,0.063]
[1741626687813,20.0,118.43,118.41,0.063]
[1741626687976,330.65038656,118.42,118.41,0.063]
[1741626688174,329.384262,118.42,118.41,0.063]
[1741626688491,242.213972,118.42,118.41,0.063]
[1741626688700,309.56778768,118.42,118.41,0.063]
[1741626688870,318.01228768,118.42,118.41,0.063]
[1741626689205,38.933972,118.39,118.38,0.063]
[1741626689374,20.933972,118.38,118.33,0.063]
[1741626689702,38.933972,118.34,118.33,0.063]
[1741626689901,154.54067656,118.34,118.33,0.063]
[1741626690109,86.104262,118.34,118.33,0.063]
[1741626690398,18.933972,118.34,118.33,0.063]
[1741626690576,87.37038656,118.34,118.33,0.063]
[1741626690780,95.82058656,118.34,118.33,0.063]
[1741626691110,0.14216157,118.32,118.29,0.063]
[1741626691296,98.01211456,118.34,118.29,0.063]
[1741626691297,86.104262,118.3,118.29,0.063]
[1741626691498,223.4,118.31,118.29,0.063]
[1741626691684,87.37038656,118.3,118.29,0.063]
[1741626692814,87.37038656,118.3,118.17,29.6182]
[1741626692815,0.14216157,118.24,118.17,8.0883]
[1741626692975,67.17029,118.21,118.17,8.0883]
[1741626693179,291.99641456,118.21,118.16,11.5255]
[1741626693396,291.99641456,118.21,118.08,67.17029]
[1741626693397,67.17029,118.19,118.17,0.03]
[1741626693609,1.26612456,118.2,118.17,0.03]
[1741626693791,223.56,118.21,118.17,0.03]
[1741626694116,223.56,118.21,118.19,67.17029]
[1741626694402,0.28432314,118.18,118.17,0.03]
[1741626694610,0.28432314,118.18,118.08,67.17029]
[1741626694611,1.5504477,118.18,118.08,67.17029]
[1741626694778,1.26612456,118.18,118.07,20.0]
[1741626694977,1.26612456,118.18,118.06,18.64964886]
[1741626695211,1.26612456,118.19,118.17,0.03]
[1741626695379,223.56,118.21,118.17,0.03]
[1741626695802,223.56,118.21,118.18,67.17029]
[1741626696009,223.56,118.21,118.17,0.03]
[1741626696208,223.56,118.21,118.17,67.20029]
[1741626696383,223.56,118.21,118.2,67.17029]
[1741626696887,223.74,118.28,118.2,134.34058]
[1741626697099,67.31245157,118.26,118.2,67.17029]
[1741626697275,68.43641456,118.25,118.18,29.6157]
[1741626697480,1.26612456,118.25,118.2,67.17029]
[1741626697714,67.31245157,118.26,118.18,29.6157]
[1741626697715,1.26612456,118.27,118.22,67.17029]
[1741626698011,223.74,118.28,118.26,67.17029]
[1741626698218,223.74,118.28,118.27,67.17029]
[1741626698387,223.74,118.28,118.27,75.62549]
[1741626698584,0.063,118.3,118.27,75.62549]
[1741626698784,290.97029,118.4,118.29,67.17029]
[1741626698987,67.17029,118.36,118.27,32.6665]
[1741626699190,1.40828613,118.39,118.3,20.0]
[1741626699395,1.26612456,118.39,118.3,20.0]
[1741626699813,1.40828613,118.39,118.3,20.0]
[1741626700403,67.17029,118.37,118.31,8.4523]
[1741626700625,67.17029,118.34,118.3,8.453]
[1741626700808,67.17029,118.33,118.28,29.5907]
[1741626700999,0.14216157,118.37,118.28,29.5907]
[1741626701332,18.933972,118.35,118.28,29.5907]
[1741626701496,68.57857613,118.35,118.29,67.17029]
[1741626701705,1.40828613,118.39,118.28,29.5907]
[1741626701904,1.40828613,118.39,118.34,67.17029]
[1741626702107,1.26612456,118.39,118.34,67.17029]
[1741626702427,1.26612456,118.39,118.28,71.8632]
[1741626702428,223.8,118.4,118.37,75.61829]
[1741626702626,0.18352568,118.42,118.39,67.17029]
[1741626702793,0.18352568,118.42,118.41,67.17029]
[1741626702998,0.18352568,118.42,118.4,67.17029]
[1741626703193,0.18352568,118.42,118.4,20.0]
[1741626703392,0.18352568,118.42,118.37,71.8086]
[1741626703393,0.18352568,118.42,118.37,29.5682]
[1741626703622,0.18352568,118.42,118.4,20.0]
[1741626703825,0.18352568,118.42,118.38,67.17029]
[1741626704032,0.18352568,118.42,118.37,29.5682]
[1741626704200,67.35381568,118.42,118.37,96.73849]
[1741626704397,0.18352568,118.42,118.39,67.17029]
[1741626704599,2.568e-05,118.42,118.41,67.17029]
[1741626704994,1.089e-05,118.43,118.41,67.17029]
[1741626705214,1.089e-05,118.43,118.42,67.17029]
[1741626705426,0.16406298,118.44,118.42,67.17029]
[1741626705427,7.387e-05,118.44,118.42,67.17029]
[1741626705633,0.15325868,118.46,118.39,4.89]
[1741626705634,4.148e-05,118.46,118.45,20.0]
[1741626705813,0.17935114,118.48,118.47,20.0]
[1741626705814,5.114e-05,118.48,118.47,20.0]
[1741626706413,5.114e-05,118.48,118.46,20.0]
[1741626706629,5.114e-05,118.48,118.47,67.17029]
[1741626706825,0.15327873,118.49,118.47,67.17029]
[1741626707029,0.15327873,118.49,118.48,67.17029]
[1741626707245,0.1813365,118.51,118.49,6.615]
[1741626707246,3.65e-05,118.51,118.49,6.615]
[1741626707406,0.063,118.54,118.53,20.0]
[1741626707407,0.0001,118.54,118.53,20.0]
[1741626707734,0.0001,118.54,118.53,87.17029]
[1741626708036,223.74,118.62,118.53,175.13239043]
[1741626708201,223.74,118.62,118.58,67.17029]
[1741626708397,223.74,118.62,118.59,8.4324]
[1741626708601,0.15497452,118.58,118.57,75.60399]
[1741626708802,0.15497452,118.58,118.55,75.60549]
[1741626709034,67.32526452,118.58,118.5,8.4388]
[1741626709240,67.17029,118.54,118.5,8.4388]
[1741626709421,67.17029,118.53,118.48,67.17029]
[1741626709604,0.28432314,118.55,118.48,67.17029]
[1741626709605,67.17029,118.54,118.48,67.17029]
[1741626709810,67.17029,118.52,118.47,75.61119]
[1741626710047,67.17029,118.52,118.47,8.4409]
[1741626710343,1.26612456,118.52,118.46,8.4414]
[1741626710640,67.17029,118.49,118.44,75.61329]
[1741626711019,223.64,118.53,118.48,67.17029]
[1741626711204,223.64,118.53,118.47,20.0]
[1741626711405,0.28432314,118.52,118.46,67.17029]
[1741626711605,1.26612456,118.52,118.44,8.443]
[1741626711906,68.43641456,118.52,118.47,67.17029]
[1741626712101,68.43641456,118.52,118.46,67.17029]
[1741626712309,67.17029,118.51,118.46,67.17029]
[1741626712522,223.64,118.53,118.48,67.17029]
[1741626712715,290.81029,118.53,118.47,67.17029]
[1741626712917,290.81029,118.53,118.48,67.17029]
[1741626714841,68.43641456,118.49,118.43,75.61389]
[1741626715016,68.43641456,118.5,118.43,8.4436]
[1741626715213,68.43641456,118.51,118.45,67.17029]
[1741626715414,67.17029,118.47,118.42,67.17029]
[1741626715637,67.17029,118.47,118.41,75.61549]
[1741626715930,18.933972,118.47,118.42,67.17029]
[1741626716101,0.14216157,118.46,118.4,2.9848]
[1741626716306,18.79181043,118.48,118.4,2.9848]
[1741626716307,68.43641456,118.45,118.4,2.9848]
[1741626716507,67.17029,118.44,118.38,73.69179]
[1741626716836,223.56,118.44,118.39,67.17029]
[1741626717023,223.56,118.44,118.42,67.17029]
[1741626717334,223.56,118.44,118.43,67.17029]
[1741626717534,223.56,118.44,118.42,67.17029]
[1741626717838,223.56,118.44,118.43,67.17029]
[1741626718416,223.56,118.44,118.42,67.17029]
[1741626718623,223.56,118.44,118.43,67.17029]
[1741626718817,223.56,118.44,118.39,8.4466]
[1741626719012,223.56,118.44,118.4,67.17029]
[1741626719327,223.56,118.44,118.34,21.73714886]
[1741626719328,67.17029,118.43,118.38,8.4473]
[1741626719504,68.43641456,118.43,118.38,75.61759]
[1741626719705,223.56,118.44,118.41,67.17029]
[1741626720036,223.56,118.44,118.42,67.17029]
[1741626720333,223.56,118.44,118.43,67.17029]
[1741626720533,223.56,118.44,118.4,21.1147]
[1741626720749,223.56,118.51,118.43,67.17029]
[1741626720907,223.56,118.51,118.43,39.5]
[1741626721111,223.56,118.51,118.46,20.0]
[1741626721314,223.56,118.51,118.46,59.5]
[1741626721509,223.56,118.51,118.49,67.17029]
[1741626721922,223.56,118.51,118.48,67.17029]
[1741626722134,223.56,118.51,118.46,39.5]
[1741626722335,223.56,118.51,118.46,67.17029]
[1741626722516,67.17029,118.5,118.45,8.4418]
[1741626722925,223.56,118.51,118.48,67.17029]
[1741626723124,223.56,118.51,118.47,67.17029]
[1741626723323,67.17029,118.49,118.45,39.5]
[1741626723821,67.17029,118.46,118.39,67.17029]
[1741626724136,20.14216157,118.44,118.35,29.5732]
[1741626724339,67.17029,118.4,118.35,8.4495]
[1741626724513,223.52,118.39,118.35,8.4495]
[1741626724713,223.52,118.46,118.35,69.0732]
[1741626724938,1.26612456,118.45,118.35,69.0732]
[1741626725135,1.26612456,118.45,118.35,29.5732]
[1741626725336,223.52,118.46,118.37,18.64964886]
[1741626725539,223.52,118.46,118.4,20.0]
[1741626725838,223.52,118.46,118.41,67.17029]
[1741626726043,223.52,118.46,118.4,39.5]
[1741626726044,223.52,118.46,118.43,67.17029]
[1741626726245,67.17029,118.44,118.36,39.5]
[1741626726538,1.26612456,118.43,118.35,8.4495]
[1741626726839,20.05793499,118.45,118.35,71.8207]
[1741626727039,0.28432314,118.4,118.32,45.6898]
[1741626727337,1.26612456,118.39,118.29,0.14216157]
[1741626727520,8.4423,118.45,118.32,20.0]
[1741626727521,0.14216157,118.43,118.32,20.0]
[1741626727719,1.26612456,118.45,118.4,67.17029]
[1741626727924,223.52,118.46,118.42,67.17029]
[1741626728138,223.52,118.46,118.38,67.17029]
[1741626728448,1.26612456,118.45,118.4,67.17029]
[1741626728750,0.1749464,118.41,118.4,8.4456]
[1741626728916,0.1749464,118.41,118.38,8.4473]
[1741626729240,4.64e-05,118.41,118.4,20.0]
[1741626729436,2.541e-05,118.44,118.42,20.0]
[1741626729640,2.541e-05,118.44,118.39,9.5171]
[1741626729835,2.541e-05,118.44,118.41,67.17029]
[1741626730143,2.541e-05,118.44,118.43,67.17029]
[1741626730327,8.506e-05,118.45,118.39,49.0171]
[1741626730529,1.26620962,118.45,118.4,8.4459]
[1741626730843,1.26620962,118.45,118.38,29.5656]
[1741626731047,8.506e-05,118.45,118.42,67.17029]
[1741626731248,8.506e-05,118.45,118.44,67.17029]
[1741626731631,4.31e-06,118.46,118.44,173.84058]
[1741626731934,0.063,118.51,118.45,67.17029]
[1741626732146,0.063,118.51,118.48,67.17029]
[1741626732337,0.063,118.51,118.5,67.17029]
[1741626732543,0.063,118.51,118.5,115.10909]
[1741626733051,0.063,118.51,118.5,47.9388]
[1741626733225,0.063,118.54,118.5,203.37638]
[1741626733431,0.063,118.54,118.53,67.17029]
[1741626733748,0.063,118.54,118.5,136.20609]
[1741626733949,0.063,118.54,118.53,67.17029]
[1741626734149,223.6,118.6,118.53,106.67029]
[1741626734333,67.17029,118.65,118.59,67.17029]
[1741626734532,1.26612456,118.65,118.6,67.17029]
[1741626734734,68.43641456,118.65,118.59,67.17029]
[1741626734928,67.17029,118.64,118.58,67.17029]
[1741626735135,68.43641456,118.65,118.59,67.17029]
[1741626735423,68.43641456,118.65,118.6,67.17029]
[1741626735625,68.43641456,118.65,118.59,67.17029]
[1741626735824,1.32912456,118.66,118.6,67.17029]
[1741626736060,68.49941456,118.66,118.6,67.17029]
[1741626736225,67.17029,118.63,118.57,106.67029]
[1741626736427,68.43641456,118.62,118.56,70.03719]
[1741626736624,1.26612456,118.62,118.58,67.17029]